[Event "15th Paleochora Open 2022"]
[Site "Paleochora"]
[Date "2022.07.19"]
[Round "4.2"]
[White "Spyropoulos, Nikolaos"]
[Black "Yilmazyerli, Mert"]
[Result "1/2-1/2"]
[WhiteElo "2446"]
[BlackElo "2520"]
[Annotator "TA"]
[PlyCount "31"]
[EventDate "2022.07.17"]
[EventType "swiss"]
[EventCountry "GRE"]
[SourceTitle "playchess.com"]
[Source "ChessBase"]
[SourceQuality "1"]
[TimeControl "40/5400+30:900+30"]

{[%evp 11,18,14,8,11,13,20,10,14,15]} 1. e4 {[%emt 0:00:03]} c5 {[%emt 0:02:47]} 2. Nf3 {[%emt 0:00:05]} d6 {[%emt 0:00:04]} 3. d4 {[%emt 0:00:07]} cxd4 {[%emt 0:00:03]} 4. Qxd4 {[%emt 0:00:05]} Nc6 {[%emt 0:05:57]} 5. Bb5 {[%emt 0:00:31]} Bd7 {[%emt 0:00:05]} 6. Qd3 {[%emt 0:02:00]} g6 {[%emt 0:01:50] The position is equal.} 7. O-O {[%emt 0:02:03] B53: Sicilian: 2...d6: Lines with Qxd4.} Bg7 {[%emt 0:00:25]} 8. c4 {[%emt 0:01:03]} Nf6 {[%emt 0:00:40]} 9. Nc3 {[%emt 0:00:51]} O-O {[%emt 0:00:42] [#] Not much happened in this game.  Weighted Error Value: White=0.00 (flawless) /Black=0.00 (flawless)} {Predecessor:} 10. h3 $146 a6 11. Bxc6 Bxc6 12. Nd4 Qb6 13. Nxc6 bxc6 14. b3 Nd7 15. Qc2 Nc5 16. Be3 {1-0 (58) Hovhannisyan,R (2632)-Yilmaz,M (2630) Tornelo INT 2021} 1/2-1/2

[Event "15th Paleochora Open 2022"]
[Site "Paleochora"]
[Date "2022.07.19"]
[Round "4.3"]
[White "Georgiadis, Anastasios"]
[Black "Bernadskiy, Vitaliy"]
[Result "0-1"]
[ECO "B07"]
[WhiteElo "1701"]
[BlackElo "2610"]
[Annotator "TA"]
[PlyCount "158"]
[EventDate "2022.07.17"]
[EventType "swiss"]
[EventCountry "GRE"]
[SourceTitle "playchess.com"]
[Source "ChessBase"]
[SourceQuality "1"]
[TimeControl "40/5400+30:900+30"]

{[%evp 16,158,20,28,20,4,0,-39,-7,-19,-28,-21,-7,-27,-26,-25,-17,-35,-17,-15,-18,-34,0,0,0,-10,0,0,0,0,0,0,0,0,0,0,12,12,26,-73,0,0,0,0,20,30,53,60,45,34,58,20,38,8,31,0,0,-117,59,65,60,62,63,52,47,0,0,0,0,0,0,0,0,0,0,0,0,-19,-21,-33,0,-20,-22,-19,-26,-23,-19,-23,-23,-23,-23,-248,-247,-258,-249,-240,-19,-19,-12,-26,-27,-58,-87,-174,-65,-255,-255,-220,-34,-238,0,0,0,0,0,0,0,0,0,0,0,0,0,0,0,0,0,0,0,-212,0,-1,0,-490,-466,-11104,-5818,-29953,-11972,-12366,-4627,-29979,-29980,-29986,-29986]} 1. d4 {[%emt 0:00:04]} g6 {[%emt 0:00:09]} 2. e4 {[%emt 0:01:09]} Bg7 {[%emt 0:00:05]} 3. Nf3 {[%emt 0:00:14]} d6 {[%emt 0:00:44]} 4. Bd3 {[%emt 0:01:10]} Nd7 {[%emt 0:00:36]} 5. O-O {[%emt 0:03:10]} e5 {[%emt 0:00:03]} 6. c3 {[%emt 0:03:05]} Ngf6 {[%emt 0:00:09]} 7. Nbd2 {[%emt 0:03:55]} O-O {[%emt 0:00:06]} 8. Re1 {[%emt 0:04:28]} Re8 {[%emt 0:00:24]} 9. Nf1 {[%emt 0:03:21]} exd4 $5 {[%emt 0:03:48][%mdl 4] Exploring less charted territory. B07: Pirc Defence: Miscellaneous Systems.} 10. cxd4 {[%emt 0:00:26]} c5 {[%emt 0:00:03] [#]} 11. d5 $146 {[%emt 0:03:19]} ({Predecessor:} 11. Bf4 cxd4 12. Bxd6 Ng4 13. N1d2 Nde5 14. Bxe5 Nxe5 15. Nxe5 Bxe5 16. Nf3 Bg7 17. Rc1 {0-1 (50) Levin,E (2524)-Sjugirov,S (2649) Sochi 2017}) 11... Ng4 {[%emt 0:01:36] Black is slightly better.} 12. Ne3 {[%emt 0:04:03]} Nxe3 {[%emt 0:01:54]} 13. Rxe3 {[%emt 0:01:17]} a6 {[%emt 0:00:29]} 14. a4 {[%emt 0:01:46]} Ne5 {[%emt 0:01:08]} 15. Nxe5 {[%emt 0:04:05]} Bxe5 {[%emt 0:00:04]} 16. Re1 {[%emt 0:02:08]} Qh4 {[%emt 0:03:23]} 17. g3 {[%emt 0:02:28]} Qf6 {[%emt 0:00:04]} 18. Kg2 {[%emt 0:10:52]} Bxb2 {[%emt 0:05:50]} 19. Bxb2 {[%emt 0:00:09]} Qxb2 {[%emt 0:00:05]} 20. Rb1 {[%emt 0:00:26]} Qd4 {[%emt 0:04:55]} 21. Bc2 {[%emt 0:04:09]} Qc3 {[%emt 0:00:35][%cal Ob7b5]} 22. Re3 {[%emt 0:03:41]} Qa5 {[%emt 0:00:36]} 23. Qe1 {[%emt 0:00:28]} Qc7 {[%emt 0:01:17]} 24. a5 {[%emt 0:00:19] Prevents b6.} Bd7 {[%emt 0:00:14]} 25. Rb6 {[%emt 0:01:34]} Bb5 {[%emt 0:00:05]} 26. Qc3 {[%emt 0:03:22][%mdl 1024] White has compensation.} Rad8 {[%emt 0:01:45]} 27. f4 {[%emt 0:02:46]} (27. h4 $11) 27... Qe7 {[%emt 0:04:12]} ({Better is} 27... f5 $1 $17 28. Qf6 Rf8 29. Qe6+ Kg7) 28. Bd1 $11 {[%emt 0:08:40]} f6 {[%emt 0:03:48]} 29. Bf3 {[%emt 0:02:45]} Qg7 {[%emt 0:01:23]} 30. Bg4 {[%emt 0:01:37]} Re7 {[%emt 0:03:30]} 31. Be6+ {[%emt 0:00:25]} Kh8 {[%emt 0:00:05]} 32. Qe1 {[%emt 0:05:29]} g5 {[%emt 0:01:54]} 33. Qf2 {[%emt 0:01:00]} Be8 {[%emt 0:00:09]} 34. fxg5 {[%emt 0:01:10]} Qxg5 {[%emt 0:00:32]} 35. Rf3 {[%emt 0:00:44]} Bg6 {[%emt 0:00:27]} 36. Bf5 {[%emt 0:02:01]} (36. h4 $11 {keeps the balance.} Qe5 37. Rxf6 Qxe4+ 38. Kg1) 36... Kg7 $2 {[%emt 0:01:30]} (36... Rxe4 $17 {Threatens to win with ...Rd4.} 37. Rxb7 Rde8) 37. h4 $14 {[%emt 0:01:40]} Qh6 {[%emt 0:00:05]} 38. Bxg6 $1 {[%emt 0:01:18]} Qxg6 {[%emt 0:00:32]} 39. Rf5 {[%emt 0:01:09][%cal Oe4e5]} Rdd7 {[%emt 0:01:37]} 40. Qf4 {[%emt 0:00:00]} (40. h5 $1 $14 Qh6 41. Qf3) 40... h5 {[%emt 0:00:00]} 41. Rxd6 {[%emt 0:05:05]} Rxd6 {[%emt 0:05:04]} 42. Qxd6 {[%emt 0:00:02]} Rxe4 $11 {[%emt 0:00:21][%mdl 4096] Endgame KQR-KQR} 43. Rf2 {[%emt 0:04:12]} c4 {[%emt 0:15:10]} 44. Qc7+ {[%emt 0:00:26]} Qf7 {[%emt 0:04:56]} 45. d6 {[%emt 0:01:12]} Rd4 {[%emt 0:01:54] Prevents Rd2.} 46. Rf4 {[%emt 0:01:51]} ({But not} 46. Rb2 Kg6 47. Qe7 (47. Rxb7 {leads to mate.} Qd5+ 48. Kf2 Qf5+ 49. Ke2 Qe4+ 50. Kf1 Qf3+ 51. Kg1 Rd1+ 52. Kh2 Qh1#) 47... Qd5+ 48. Kf2 Qf5+ 49. Kg2 Qd5+ 50. Kf2 Qf5+ 51. Kg2 Qd5+ $17) 46... Rd2+ {[%emt 0:00:34]} 47. Rf2 {[%emt 0:03:42]} c3 {[%emt 0:00:14]} (47... Rd5 $5 {[%cal Rf7c7]} 48. Qxc4 Rxd6 $17) 48. Qxc3 {[%emt 0:02:01]} Rxd6 {[%emt 0:00:15]} 49. Rd2 {[%emt 0:00:47]} Rc6 {[%emt 0:03:38]} 50. Qd4 {[%emt 0:00:21]} Re6 {[%emt 0:00:54]} 51. Qd8 {[%emt 0:00:41]} Re8 {[%emt 0:00:11]} 52. Qd6 {[%emt 0:02:00]} Re5 {[%emt 0:01:33]} 53. Qd7 $2 {[%emt 0:00:38]} (53. Qd8 $11 {and White has nothing to worry.} Qe8 54. Qc7+ Re7 55. Qd6) 53... Rxa5 $19 {[%emt 0:03:30]} 54. Qxf7+ {[%emt 0:00:06]} Kxf7 {[%emt 0:00:04] KR-KR} 55. Rd7+ {[%emt 0:00:07]} Ke6 $2 {[%emt 0:00:01]} ({Black should play} 55... Kg6 $1 $19 {And now ...Rb5 would win.} 56. Rd8 b5 57. Rg8+ Kf5) 56. Rxb7 $11 {[%emt 0:00:01]} Rb5 {[%emt 0:00:29]} 57. Ra7 {[%emt 0:00:27]} a5 {[%emt 0:00:04]} 58. Kf3 {[%emt 0:00:55]} Kf5 {[%emt 0:03:14]} 59. Ra8 {[%emt 0:00:32]} Rb3+ {[%emt 0:00:49]} (59... Rc5 $1 $19 60. Rh8 Rc3+ 61. Ke2 Kg4 62. Rg8+ Kh3) 60. Kg2 $1 $15 {[%emt 0:00:10]} Ra3 {[%emt 0:00:03]} 61. Rh8 {[%emt 0:00:57] [#]} a4 $2 {[%emt 0:00:57]} (61... Kg6 $1 $19 {...a4 is the strong threat.} 62. Rg8+ Kh7) 62. Ra8 $2 {[%emt 0:01:20] [#]} (62. Rh6 $1 $15) 62... Ke4 $2 {[%emt 0:01:19]} (62... Ra1 $1 $19 {White must now prevent ...Ra2+.} 63. Rh8 a3) 63. Re8+ $11 {[%emt 0:00:28]} Kd4 {[%emt 0:03:03]} 64. Rd8+ {[%emt 0:00:19]} Kc3 {[%emt 0:00:52]} 65. Rc8+ {[%emt 0:00:25]} Kb2 {[%emt 0:00:44]} 66. Ra8 {[%emt 0:01:16]} Kb3 {[%emt 0:05:49] Hoping for ...Ra2+.} 67. Rb8+ {[%emt 0:00:15]} Kc4 {[%emt 0:01:01]} 68. Rc8+ {[%emt 0:00:07]} Kd3 {[%emt 0:02:27] Strongly threatening ...Rc3.} 69. Rd8+ {[%emt 0:00:17]} Kc2 {[%emt 0:01:25]} 70. Ra8 $1 {[%emt 0:00:35]} Ra2 {[%emt 0:03:23]} 71. Kf3 {[%emt 0:01:51]} a3 {[%emt 0:00:46]} 72. Rc8+ $2 {[%emt 0:00:57]} (72. g4 $1 $11 hxg4+ 73. Kxg4) 72... Kd2 $2 {[%emt 0:02:23]} (72... Kd3 $19 73. g4 Ra1) 73. Ra8 {[%emt 0:01:46]} Ra1 {[%emt 0:00:42]} 74. Rd8+ $2 {[%emt 0:00:24][%mdl 8192]} (74. g4 $1 $11) 74... Kc2 $19 {[%emt 0:00:36] aiming for ...a2.} 75. Kg2 {[%emt 0:02:42]} (75. Rc8+ $142 Kb3 76. Rb8+ Ka2 77. Rb5) 75... Rb1 {[%emt 0:01:15]} 76. Ra8 {[%emt 0:01:53]} Kb2 {[%emt 0:00:32] ( -> ...a2)} 77. g4 {[%emt 0:00:49]} hxg4 {[%emt 0:00:39]} (77... a2 $142 78. gxh5 a1=Q 79. Rxa1 Rxa1) 78. h5 {[%emt 0:00:07]} a2 {[%emt 0:00:18]} 79. Rb8+ {[%emt 0:00:33]} Kc2 {[%emt 0:00:09] Weighted Error Value: White=0.22 (precise) /Black=0.22 (precise)} 0-1

[Event "15th Paleochora Open 2022"]
[Site "Paleochora"]
[Date "2022.07.19"]
[Round "4.4"]
[White "Yilmaz, Mustafa"]
[Black "Kalogeris, Ioannis"]
[Result "1-0"]
[ECO "D17"]
[WhiteElo "2634"]
[BlackElo "2406"]
[Annotator "TA"]
[PlyCount "43"]
[EventDate "2022.07.17"]
[EventType "swiss"]
[EventCountry "GRE"]
[SourceTitle "playchess.com"]
[Source "ChessBase"]
[SourceQuality "1"]
[TimeControl "40/5400+30:900+30"]

{[%evp 12,43,-4,0,63,50,79,84,64,76,83,83,76,57,122,111,307,318,330,317,314,333,493,477,491,493,474,491,492,465,2013,1975,29988,3189]} 1. d4 {[%emt 0:00:02] Huebner,R} d5 {[%emt 0:03:37]} 2. c4 {[%emt 0:00:05]} c6 {[%emt 0:01:01]} 3. Nf3 {[%emt 0:00:04]} Nf6 {[%emt 0:00:59]} 4. Nc3 {[%emt 0:00:07]} dxc4 {[%emt 0:01:25]} 5. a4 {[%emt 0:00:15]} Bf5 {[%emt 0:00:49]} 6. Ne5 {[%emt 0:01:10]} Nbd7 {[%emt 0:07:38]} 7. Nxc4 {[%emt 0:00:07]} Nd5 {[%emt 0:12:37] D17: Slav Defence: 5 a4 Bf5: Lines with 6 Nh4 and 6 Ne5.} (7... Qc7 $11) 8. f3 $14 {[%emt 0:12:54]} e5 {[%emt 0:36:48]} 9. e4 {[%emt 0:05:33]} Nxc3 {[%emt 0:09:44] White is better.} 10. bxc3 {[%emt 0:00:03]} Be6 {[%emt 0:00:11]} 11. Rb1 {[%emt 0:17:40]} Qc7 {[%emt 0:00:50]} 12. Be3 {[%emt 0:02:21] [#] White is more active.} exd4 $146 {[%emt 0:03:21]} (12... Rd8 $14) ({Predecessor:} 12... Rd8 13. Qc2 Be7 14. Be2 f6 15. O-O b6 16. Rbd1 Bf7 17. f4 O-O 18. dxe5 fxe5 19. Rxd7 Qxd7 20. Nxe5 {0-1 (53) Gelfand,B (2693)-Morozevich,A (2758) Mallorca 2004 CBM 104 [Huebner,R]}) 13. cxd4 $16 {[%emt 0:01:58] Hoping for d5.} (13. Qxd4 $6 f6 $11) 13... a5 $2 {[%emt 0:00:36] [#]} (13... Bxc4 $16 14. Bxc4 a5) 14. d5 $18 {[%emt 0:05:59]} cxd5 {[%emt 0:01:50]} 15. exd5 {[%emt 0:00:39]} Bf5 {[%emt 0:00:18]} 16. d6 {[%emt 0:03:51]} Qc6 {[%emt 0:01:33] [#]} (16... Qb8 {was necessary.} 17. Rb5 Be6) 17. Rb6 $1 {[%emt 0:06:21][%mdl 512]} Nxb6 {[%emt 0:02:21]} (17... Qc8 18. Qd4) 18. Nxb6 {[%emt 0:00:08] And now Bb5 would win.} ({Stronger than} 18. Bxb6 Be6 19. Qd4 Rc8 $15) 18... Qc3+ {[%emt 0:00:22]} 19. Kf2 {[%emt 0:02:44]} Qb2+ {[%emt 0:02:13]} 20. Kg3 {[%emt 0:04:38]} ({Don't play} 20. Kg1 Bxd6 21. Qxd6 Rd8 $18) 20... Rb8 {[%emt 0:07:21]} (20... Qe5+ $2 21. Bf4 Bxd6 22. Bxe5) (20... Rd8 $142 21. Bb5+ Qxb5 22. axb5 Bxd6+ 23. Kf2 Bg3+ 24. Kxg3 Rxd1 25. Rxd1 O-O) 21. Bb5+ {[%emt 0:00:13]} Kd8 {[%emt 0:00:02]} 22. Nc4 {[%emt 0:00:40][%csl LRa5,LRb2] Black did not feel at home in the position after the opening.  Weighted Error Value: White=0.02 (flawless) /Black=0.79} 1-0

[Event "15th Paleochora Open 2022"]
[Site "Paleochora"]
[Date "2022.07.19"]
[Round "4.5"]
[White "Vlachos, Anatole"]
[Black "Basso, Pier Luigi"]
[Result "1/2-1/2"]
[ECO "C72"]
[WhiteElo "2433"]
[BlackElo "2561"]
[Annotator "TA"]
[PlyCount "39"]
[EventDate "2022.07.17"]
[EventType "swiss"]
[EventCountry "GRE"]
[SourceTitle "playchess.com"]
[Source "ChessBase"]
[SourceQuality "1"]
[TimeControl "40/5400+30:900+30"]

{[%evp 16,26,30,27,25,25,29,21,23,22,26,14,24]} 1. e4 {[%emt 0:00:30]} e5 {[%emt 0:02:51]} 2. Nf3 {[%emt 0:00:00]} Nc6 {[%emt 0:00:03]} 3. Bb5 {[%emt 0:00:00]} a6 {[%emt 0:00:49]} 4. Ba4 {[%emt 0:00:00]} d6 {[%emt 0:00:12]} 5. O-O {[%emt 0:00:06]} Bd7 {[%emt 0:00:14]} 6. d4 {[%emt 0:01:06]} Nxd4 {[%emt 0:06:27]} 7. Bxd7+ {[%emt 0:00:10]} Qxd7 {[%emt 0:00:05]} 8. Nxd4 {[%emt 0:00:05]} exd4 {[%emt 0:00:04]} 9. Qxd4 {[%emt 0:00:17]} Nf6 {[%emt 0:00:30] 9...Nf6 is better than 9...Ne7. C72: Ruy Lopez: Deferred Steinitz: 5 0-0.} 10. b3 {[%emt 0:10:53]} Be7 {[%emt 0:03:16]} 11. Bb2 {[%emt 0:00:07]} O-O {[%emt 0:02:12]} 12. c4 {[%emt 0:00:35]} Rfe8 {[%emt 0:01:06]} 13. Nc3 {[%emt 0:10:59]} c6 {[%emt 0:01:10] [#] Prevents Nd5. An uneventful encounter.  Weighted Error Value: White=0.00 (flawless) /Black=0.02 (flawless)} {Predecessor:} 14. Rad1 $146 Rad8 15. Rfe1 b5 16. Ne2 Qb7 17. Ng3 Bf8 18. f3 bxc4 19. Qxc4 d5 20. Qc2 {1-0 (57) Deac,B (2625)-Salinas Herrera,P (2514) Chess.com INT 2020} 1/2-1/2

[Event "15th Paleochora Open 2022"]
[Site "Paleochora"]
[Date "2022.07.19"]
[Round "4.6"]
[White "Meshkovs, Nikita"]
[Black "Pap, Misa"]
[Result "1-0"]
[ECO "C65"]
[WhiteElo "2535"]
[BlackElo "2375"]
[Annotator "TA"]
[PlyCount "93"]
[EventDate "2022.07.17"]
[EventType "swiss"]
[EventCountry "GRE"]
[SourceTitle "playchess.com"]
[Source "ChessBase"]
[SourceQuality "1"]
[TimeControl "40/5400+30:900+30"]

{[%evp 11,93,12,14,6,14,0,17,12,14,10,17,6,-2,6,5,0,7,10,8,6,14,-15,7,-52,-47,-49,-42,-43,-41,-52,-29,-27,-22,-31,-13,-22,0,-34,-26,-29,-14,-10,0,0,0,0,0,-9,0,0,0,0,0,0,0,0,16,0,51,57,112,26,140,154,206,200,406,391,925,904,1375,1375,1356,1356,1341,289,1341,1341,1314,1300,29961,27,5365,1722]} 1. e4 {[%emt 0:00:28]} e5 {[%emt 0:03:19]} 2. Nf3 {[%emt 0:00:35]} Nc6 {[%emt 0:00:05]} 3. Bb5 {[%emt 0:00:04]} Nf6 {[%emt 0:01:07]} 4. d3 {[%emt 0:00:33]} Bc5 {[%emt 0:00:28]} 5. O-O {[%emt 0:00:46]} Nd4 {[%emt 0:00:49]} 6. Nxd4 {[%emt 0:00:07]} Bxd4 {[%emt 0:00:05]} 7. c3 {[%emt 0:00:13] C65: Ruy Lopez: Berlin Defence (3...Nf6), unusual lines and 4 0-0 Bc5.} Bb6 {[%emt 0:00:05]} 8. Ba4 {[%emt 0:03:38] 8.Na3 is the recent fashion.} O-O {[%emt 0:00:35]} 9. Bg5 {[%emt 0:09:57] The position is equal.} h6 {[%emt 0:00:06]} 10. Bh4 {[%emt 0:00:03]} d6 {[%emt 0:00:22]} 11. Nd2 {[%emt 0:02:00]} g5 {[%emt 0:03:38]} 12. Bg3 {[%emt 0:00:10]} Bg4 $36 {[%emt 0:00:05][%mdl 2048] Black fights for an advantage.} 13. Qe1 {[%emt 0:03:58]} Nh5 {[%emt 0:00:24] [#]} 14. Nc4 $146 {[%emt 0:10:23]} ({Predecessor:} 14. Bd1 Bxd1 15. Qxd1 Ng7 16. Nc4 f5 17. exf5 Nxf5 18. a4 a6 19. Qb3 Kh8 20. Nxb6 cxb6 {1-0 (44) Karjakin,S (2754)-Anand,V (2757) Bucharest 2019}) 14... Nf4 {[%emt 0:05:06]} 15. Bc2 {[%emt 0:10:43]} Be6 {[%emt 0:15:09]} 16. Kh1 {[%emt 0:11:21]} Qf6 {[%emt 0:11:33]} 17. f3 {[%emt 0:03:21]} (17. Nxb6 $11 axb6 18. a3) 17... Bxc4 $15 {[%emt 0:00:16]} 18. dxc4 {[%emt 0:00:02]} a5 {[%emt 0:02:24]} 19. Bf2 {[%emt 0:04:40]} Bxf2 {[%emt 0:00:09]} 20. Rxf2 {[%emt 0:00:16]} Kh8 {[%emt 0:03:35]} 21. g3 {[%emt 0:07:24]} Ne6 {[%emt 0:00:06]} 22. Qe3 {[%emt 0:00:56]} a4 {[%emt 0:08:42]} 23. Bd3 {[%emt 0:10:21]} Nc5 {[%emt 0:04:21]} 24. Raf1 {[%emt 0:00:02]} Rae8 {[%emt 0:00:51]} 25. Bc2 {[%emt 0:00:25]} Qe7 {[%emt 0:07:34]} (25... Rg8 {seems wilder.} 26. f4 gxf4 27. gxf4 Qg6) 26. Qd2 {[%emt 0:02:14]} (26. f4 {keeps more tension.} exf4 27. gxf4 Nxe4 28. Rg2) 26... f6 {[%emt 0:01:45]} 27. Qd1 {[%emt 0:00:22]} Qd7 {[%emt 0:02:10]} 28. Rg2 {[%emt 0:03:21]} Kg7 {[%emt 0:00:21]} 29. Re1 {[%emt 0:04:22]} Ra8 {[%emt 0:05:23]} 30. f4 $1 {[%emt 0:00:42]} Qf7 {[%emt 0:00:06]} 31. b4 {[%emt 0:01:11]} axb3 $1 {[%emt 0:00:04]} 32. axb3 {[%emt 0:00:30][%cal Ba2b3,Bb3b4][%mdl 32]} Ra3 {[%emt 0:02:23][%cal Ob7b5]} 33. Rf1 {[%emt 0:00:10]} Qe7 {[%emt 0:01:05]} 34. h4 {[%emt 0:01:01]} Raa8 {[%emt 0:03:10]} (34... Rfa8 $11) 35. b4 $14 {[%emt 0:01:08]} Ne6 {[%emt 0:00:13]} (35... Nd7 $14) 36. c5 {[%emt 0:04:11]} ({White should play} 36. f5 $16) 36... dxc5 {[%emt 0:00:42] [#]} (36... exf4 $11 {remains equal.} 37. gxf4 dxc5) 37. f5 $1 $16 {[%emt 0:00:13]} Rfd8 {[%emt 0:03:23]} (37... Nd8 $16 {is a better defense.}) 38. Qh5 $18 {[%emt 0:00:33] Strongly threatening Qg6+.} Nf8 {[%emt 0:01:09] Prevents Qg6+.} (38... Qe8 39. Qxe8 Rxe8) 39. hxg5 {[%emt 0:00:25]} hxg5 $2 {[%emt 0:00:10]} (39... Kh8 40. Rh2 (40. Qxh6+ Qh7 $16) 40... Qg7) 40. Rh2 {[%emt 0:00:00] Intending Bb3 and mate.} c4 {[%emt 0:00:00] [#] Against Bb3} 41. Bd1 $1 {[%emt 0:04:40]} Rxd1 {[%emt 0:02:31]} 42. Rxd1 {[%emt 0:00:36]} Ra6 {[%emt 0:01:04]} 43. Qh8+ {[%emt 0:02:23]} ({Not} 43. b5 Rd6 44. Qh8+ Kf7 45. Qh5+ Kg7 $16) 43... Kf7 {[%emt 0:00:01] [#]} 44. Rh7+ $1 {[%emt 0:00:26][%mdl 512]} Nxh7 {[%emt 0:00:02]} 45. Qxh7+ {[%emt 0:00:09]} Kf8 {[%emt 0:00:07]} 46. Qh8+ {[%emt 0:00:04]} Kf7 {[%emt 0:00:02]} 47. Rd8 {[%emt 0:00:11] Weighted Error Value: White=0.11 (very precise) /Black=0.48} 1-0

[Event "15th Paleochora Open 2022"]
[Site "Paleochora"]
[Date "2022.07.19"]
[Round "4.7"]
[White "Bulmaga, Irina"]
[Black "Kourkoulos-Arditis, Stamatis"]
[Result "0-1"]
[ECO "C45"]
[WhiteElo "2394"]
[BlackElo "2535"]
[Annotator "TA"]
[PlyCount "106"]
[EventDate "2022.07.17"]
[EventType "swiss"]
[EventCountry "GRE"]
[SourceTitle "playchess.com"]
[Source "ChessBase"]
[SourceQuality "1"]
[TimeControl "40/5400+30:900+30"]

{[%evp 9,106,0,-6,-6,19,0,35,27,26,23,21,0,21,5,26,27,34,20,25,28,38,25,39,19,47,46,42,38,30,29,56,3,10,0,0,-16,6,-88,-119,-103,-110,-254,-218,-253,-212,-275,-285,-329,-221,-511,-507,-479,-318,-331,-320,-386,-390,-461,-460,-431,-345,-397,-418,-392,-399,-375,-322,-353,-348,-393,-365,-395,-385,-414,-400,-443,-484,-447,-435,-653,-404,-537,-526,-641,-675,-711,-692,-801,-816,-897,-712,-704,-681,-12840,-12840,-12840,-12840,-12841,-723]} 1. e4 {[%emt 0:00:04]} e5 {[%emt 0:00:03]} 2. Nf3 {[%emt 0:00:08]} Nc6 {[%emt 0:00:04]} 3. d4 {[%emt 0:00:09]} exd4 {[%emt 0:00:03]} 4. Nxd4 {[%emt 0:00:07]} Bc5 {[%emt 0:00:03]} 5. Nb3 {[%emt 0:00:16]} Bb6 {[%emt 0:00:04]} 6. Qe2 {[%emt 0:00:17] C45: Scotch Game.} Nge7 {[%emt 0:00:13]} 7. Be3 {[%emt 0:01:18]} O-O {[%emt 0:00:10]} 8. Nc3 {[%emt 0:01:12] White is slightly better.} f5 {[%emt 0:00:10]} 9. Bxb6 {[%emt 0:05:18]} axb6 {[%emt 0:02:29]} 10. O-O-O {[%emt 0:00:27]} fxe4 {[%emt 0:00:33]} 11. Qxe4 {[%emt 0:02:49]} d6 {[%emt 0:00:07]} 12. f4 {[%emt 0:16:25]} (12. Bd3 Bf5 13. Qh4 Bxd3 14. Rxd3 Qe8 $11) 12... Bg4 {[%emt 0:01:51]} 13. Bc4+ {[%emt 0:03:00]} (13. Bd3 Ng6 14. Rdf1 Kh8 $11) 13... Kh8 $1 {[%emt 0:00:08]} 14. Rd2 {[%emt 0:02:21] [#]} Ng8 $146 {[%emt 0:02:43]} ({Predecessor:} 14... Ng6 15. g3 Re8 16. Qg2 Re3 17. Be2 Bf5 18. Bf3 b5 19. Nd5 Re8 20. Kb1 Na5 21. Nxa5 Rxa5 {½-½ (33) Ducarmon,Q (2410)-Bok,B (2525) Netherlands 2013}) 15. a3 {[%emt 0:09:09]} Qh4 {[%emt 0:11:38]} 16. g3 {[%emt 0:15:05]} Qh5 {[%emt 0:00:09]} 17. Qd5 {[%emt 0:04:25]} Qh6 {[%emt 0:15:44]} 18. h3 {[%emt 0:01:43]} Bd7 {[%emt 0:00:45]} 19. Qg2 {[%emt 0:07:13]} Nce7 {[%emt 0:06:33]} 20. Nd4 {[%emt 0:01:15]} (20. Qxb7 $2 Bc6 21. Qxc7 Bxh1 $19) ({Better is} 20. Re1 $14) 20... c6 $11 {[%emt 0:03:13]} 21. Nf3 {[%emt 0:02:28]} b5 {[%emt 0:02:12]} 22. Bb3 {[%emt 0:06:13]} d5 {[%emt 0:03:32][%cal Ob5b4]} 23. Ng5 {[%emt 0:03:52]} (23. Kb1 $11 {remains equal.}) 23... b4 $1 $17 {[%emt 0:09:50]} 24. axb4 {[%emt 0:01:51] [#]} Qd6 $1 {[%emt 0:00:07]} 25. Qe4 {[%emt 0:07:39] White does not recover from this.} (25. Na2 $17) 25... Nf5 {[%emt 0:01:17]} (25... dxe4 26. Rxd6 Nf6 27. Rhd1 (27. Ngxe4 Nxe4 28. Rxd7 Ra1+ 29. Nb1 Nxg3 $14) (27. Nf7+ Rxf7 28. Bxf7 Nf5 $16) 27... Ra1+ 28. Kd2 $16) 26. Qd3 {[%emt 0:06:09]} Nf6 {[%emt 0:03:35]} ({Weaker is} 26... Qxb4 27. Na2 $19) 27. Kb1 {[%emt 0:02:03] Prevents Ra1+.} Qxb4 {[%emt 0:00:26] Strongly threatening ...h6.} 28. g4 {[%emt 0:00:59]} Qxf4 {[%emt 0:01:04]} ({Wrong is} 28... Qa5 $2 29. Kc1 h6 30. gxf5 $19) 29. Rf1 $2 {[%emt 0:00:20]} (29. Nxh7 Nxh7 30. gxf5) 29... Qxg5 $19 {[%emt 0:00:20]} 30. gxf5 {[%emt 0:00:02]} Rae8 {[%emt 0:01:30]} 31. Rdf2 {[%emt 0:00:21]} Re5 {[%emt 0:01:32]} 32. Rf4 {[%emt 0:01:20]} Nh5 {[%emt 0:02:55][%csl LRf4,LRf5]} 33. Rg4 {[%emt 0:00:16]} Qe7 {[%emt 0:00:10][%cal Rd7f5]} 34. Rgg1 {[%emt 0:00:44]} Rexf5 {[%emt 0:00:18]} 35. Re1 {[%emt 0:00:29]} Re5 {[%emt 0:00:23]} 36. Rxe5 {[%emt 0:00:10]} Qxe5 {[%emt 0:00:04]} 37. h4 {[%emt 0:00:36]} Bf5 {[%emt 0:01:21]} 38. Qd2 {[%emt 0:00:07]} Qf4 {[%emt 0:02:06]} 39. Qe1 {[%emt 0:00:54]} Bg6 {[%emt 0:00:31]} 40. Ne2 {[%emt 0:00:00]} Qe3 {[%emt 0:00:00] [#] White must now prevent ...Re8.} 41. Rf1 {[%emt 0:06:34][%cal Rf1f8]} Re8 {[%emt 0:01:06]} 42. Qb4 {[%emt 0:00:07] White wants to mate with Rf8+.} h6 {[%emt 0:04:17]} ({Don't go for} 42... c5 $2 43. Qb5 Nf6 44. Nf4 $19) 43. Nc3 {[%emt 0:01:20]} Ng3 {[%emt 0:03:32]} 44. Rd1 {[%emt 0:01:45]} (44. Rf8+ $142 Rxf8 45. Qxf8+ Kh7 46. Ka2) 44... b5 {[%emt 0:05:32] Hoping for ...Bh5.} 45. Qd6 {[%emt 0:02:11]} Re6 {[%emt 0:00:29] Black is clearly winning.} 46. Qb8+ {[%emt 0:02:34]} Kh7 {[%emt 0:00:07]} 47. Ka2 {[%emt 0:00:35]} Re8 {[%emt 0:03:50][%cal Be6e8,Be8a8,Ba8a4][%mdl 32]} 48. Qd6 {[%emt 0:00:27]} Bh5 {[%emt 0:01:26]} 49. Rd3 {[%emt 0:01:23]} Ra8+ {[%emt 0:00:50]} 50. Ba4 {[%emt 0:00:21]} Ne4 {[%emt 0:00:21]} 51. Qxc6 {[%emt 0:03:08]} Nxc3+ {[%emt 0:00:13]} 52. Rxc3 {[%emt 0:00:41]} Rxa4+ {[%emt 0:00:05]} 53. Kb3 {[%emt 0:00:07]} Qe8 {[%emt 0:01:10] Weighted Error Value: White=0.44/Black=0.19 (very precise)} 0-1